[Event "Late-Titled-Tuesday-Blitz-March-12-2024"]
[Site "Chess.com"]
[Date "2024.03.12"]
[Round "4"]
[White "enriquebutti"]
[Black "N4700000"]
[Result "0-1"]
[WhiteElo "2231"]
[BlackElo "2497"]
[TimeControl "180+1"]
[EndTime "14:38:51 PDT"]
[Termination "N4700000 won by resignation"]

1. d4 {[%clk 0:02:59.4]} 1... Nf6 {[%clk 0:02:58.8]} 2. Nf3 {[%clk 0:02:58.5]}
2... e6 {[%clk 0:02:57.5]} 3. e3 {[%clk 0:02:57.7]} 3... d5 {[%clk 0:02:53.3]}
4. Bd3 {[%clk 0:02:57]} 4... c5 {[%clk 0:02:51]} 5. b3 {[%clk 0:02:56.2]} 5...
Nc6 {[%clk 0:02:48.8]} 6. a3 {[%clk 0:02:54.7]} 6... Be7 {[%clk 0:02:43.2]} 7.
Bb2 {[%clk 0:02:54.1]} 7... cxd4 {[%clk 0:02:41.7]} 8. exd4 {[%clk 0:02:53.6]}
8... O-O {[%clk 0:02:32.3]} 9. Nbd2 {[%clk 0:02:52.8]} 9... b6 {[%clk
0:02:20.3]} 10. O-O {[%clk 0:02:51.5]} 10... Bb7 {[%clk 0:02:20.1]} 11. Re1
{[%clk 0:02:50.7]} 11... Bd6 {[%clk 0:02:10.7]} 12. Ne5 {[%clk 0:02:49.5]} 12...
Ne7 {[%clk 0:02:10.2]} 13. Re3 {[%clk 0:02:39.2]} 13... Ng6 {[%clk 0:02:02.2]}
14. Nxg6 {[%clk 0:02:16]} 14... hxg6 {[%clk 0:01:59.6]} 15. Rh3 {[%clk
0:02:14.8]} 15... Re8 {[%clk 0:01:42.2]} 16. Qf3 {[%clk 0:02:05.4]} 16... e5
{[%clk 0:01:36.8]} 17. dxe5 {[%clk 0:02:04.1]} 17... Bxe5 {[%clk 0:01:36.5]} 18.
Bxe5 {[%clk 0:02:01.5]} 18... Rxe5 {[%clk 0:01:37.4]} 19. Qf4 {[%clk 0:01:52.5]}
19... Qe7 {[%clk 0:01:31.5]} 20. Nf3 {[%clk 0:01:49.2]} 20... Rh5 {[%clk
0:01:21.9]} 21. Rxh5 {[%clk 0:01:42.6]} 21... Nxh5 {[%clk 0:01:22.8]} 22. Qd4
{[%clk 0:01:40.4]} 22... Qc5 {[%clk 0:01:13.6]} 23. b4 {[%clk 0:01:32.1]} 23...
Qxd4 {[%clk 0:01:08.5]} 24. Nxd4 {[%clk 0:01:31.1]} 24... Nf4 {[%clk 0:01:07.5]}
25. Re1 {[%clk 0:01:17.8]} 25... Nxd3 {[%clk 0:01:02.4]} 26. cxd3 {[%clk
0:01:16.9]} 26... Kf8 {[%clk 0:01:02.8]} 27. f4 {[%clk 0:01:09.4]} 27... Rc8
{[%clk 0:01:02.4]} 28. Nb5 {[%clk 0:01:01.3]} 28... Rc2 {[%clk 0:00:47.7]} 29.
Nxa7 {[%clk 0:00:47.6]} 29... d4 {[%clk 0:00:46.8]} 30. g3 {[%clk 0:00:39.6]}
30... Rg2+ {[%clk 0:00:46]} 31. Kf1 {[%clk 0:00:39.3]} 31... Rxh2 {[%clk
0:00:45.7]} 32. Re5 {[%clk 0:00:37.2]} 32... Ra2 {[%clk 0:00:40.9]} 33. Nb5
{[%clk 0:00:36.3]} 33... Ba6 {[%clk 0:00:37.6]} 34. Nxd4 {[%clk 0:00:34.8]}
34... Bxd3+ {[%clk 0:00:36.9]} 35. Ke1 {[%clk 0:00:34.5]} 35... Rxa3 {[%clk
0:00:34.9]} 36. Re3 {[%clk 0:00:34]} 36... Ra1+ {[%clk 0:00:32.6]} 37. Kd2
{[%clk 0:00:33.1]} 37... Bc4 {[%clk 0:00:33]} 38. Rc3 {[%clk 0:00:32.2]} 38...
b5 {[%clk 0:00:32.8]} 39. Ke3 {[%clk 0:00:30.4]} 39... Rb1 {[%clk 0:00:31.5]}
40. Nc2 {[%clk 0:00:29.4]} 40... Rb3 {[%clk 0:00:30.7]} 41. Rxb3 {[%clk
0:00:28.2]} 41... Bxb3 {[%clk 0:00:31.6]} 42. Nd4 {[%clk 0:00:29]} 42... Bc4
{[%clk 0:00:31.5]} 43. Nc2 {[%clk 0:00:28.5]} 43... Ke7 {[%clk 0:00:30.4]} 44.
Kd4 {[%clk 0:00:28.3]} 44... Kd6 {[%clk 0:00:30.4]} 45. Ne3 {[%clk 0:00:27.3]}
45... Be2 {[%clk 0:00:30]} 46. f5 {[%clk 0:00:25.3]} 46... g5 {[%clk 0:00:26.8]}
47. Nd5 {[%clk 0:00:23.1]} 47... f6 {[%clk 0:00:20.3]} 48. Nc3 {[%clk
0:00:19.7]} 48... Bf1 {[%clk 0:00:19]} 49. Ne4+ {[%clk 0:00:17.7]} 49... Kc6
{[%clk 0:00:18.4]} 50. Nc5 {[%clk 0:00:17.3]} 50... Bh3 {[%clk 0:00:17.8]} 51.
Ke4 {[%clk 0:00:16.8]} 51... Bg2+ {[%clk 0:00:18]} 52. Kd4 {[%clk 0:00:16.1]}
52... Bd5 {[%clk 0:00:17.7]} 53. g4 {[%clk 0:00:13.5]} 53... Bc4 {[%clk
0:00:16.8]} 54. Ne4 {[%clk 0:00:11.1]} 54... Be2 {[%clk 0:00:16.3]} 55. Nc5
{[%clk 0:00:10.6]} 55... Bxg4 {[%clk 0:00:16]} 56. Ke4 {[%clk 0:00:09.3]} 56...
Bh3 {[%clk 0:00:13.7]} 57. Ne6 {[%clk 0:00:08.4]} 57... g6 {[%clk 0:00:13.6]}
58. Nxg5 {[%clk 0:00:04.7]} 58... Bxf5+ {[%clk 0:00:12.7]} 0-1

[Event "Late-Titled-Tuesday-Blitz-March-12-2024"]
[Site "Chess.com"]
[Date "2024.03.12"]
[Round "4"]
[White "Slovak_fighter2000"]
[Black "baki83"]
[Result "0-1"]
[WhiteElo "2604"]
[BlackElo "2842"]
[TimeControl "180+1"]
[EndTime "14:38:52 PDT"]
[Termination "baki83 won on time"]

1. d4 {[%clk 0:02:59.9]} 1... d5 {[%clk 0:02:59]} 2. Nf3 {[%clk 0:03:00.1]} 2...
Nf6 {[%clk 0:02:56.5]} 3. c4 {[%clk 0:03:00]} 3... e6 {[%clk 0:02:55.7]} 4. Nc3
{[%clk 0:02:59.7]} 4... Bb4 {[%clk 0:02:55.3]} 5. cxd5 {[%clk 0:02:58.1]} 5...
exd5 {[%clk 0:02:55.3]} 6. Bg5 {[%clk 0:02:57.8]} 6... h6 {[%clk 0:02:54.7]} 7.
Bxf6 {[%clk 0:02:58.1]} 7... Qxf6 {[%clk 0:02:54.5]} 8. e3 {[%clk 0:02:59]} 8...
O-O {[%clk 0:02:53.2]} 9. Be2 {[%clk 0:02:58.7]} 9... c6 {[%clk 0:02:50.3]} 10.
O-O {[%clk 0:02:58.8]} 10... Bf5 {[%clk 0:02:49.3]} 11. Qb3 {[%clk 0:02:58.8]}
11... Qe7 {[%clk 0:02:43.2]} 12. a3 {[%clk 0:02:47]} 12... Bd6 {[%clk
0:02:42.6]} 13. Qd1 {[%clk 0:02:41.8]} 13... Nd7 {[%clk 0:02:38.3]} 14. h3
{[%clk 0:02:36.6]} 14... Nf6 {[%clk 0:02:30.9]} 15. Bd3 {[%clk 0:02:35.7]} 15...
Ne4 {[%clk 0:02:29.7]} 16. Bxe4 {[%clk 0:02:27]} 16... dxe4 {[%clk 0:02:27.7]}
17. Nd2 {[%clk 0:02:27.3]} 17... Rad8 {[%clk 0:02:21.7]} 18. Qe2 {[%clk
0:02:25.2]} 18... Bb8 {[%clk 0:02:17.7]} 19. Rfc1 {[%clk 0:02:21.5]} 19... Rd6
{[%clk 0:02:07.6]} 20. f4 {[%clk 0:02:10.5]} 20... exf3 {[%clk 0:02:04.9]} 21.
Nxf3 {[%clk 0:02:08.6]} 21... Re8 {[%clk 0:01:51.2]} 22. Re1 {[%clk 0:02:01.6]}
22... Re6 {[%clk 0:01:45.9]} 23. d5 {[%clk 0:01:44.7]} 23... Rxe3 {[%clk
0:01:24.6]} 24. Qxe3 {[%clk 0:01:44.6]} 24... Qxe3+ {[%clk 0:01:25.2]} 25. Rxe3
{[%clk 0:01:45.5]} 25... Rxe3 {[%clk 0:01:25.3]} 26. dxc6 {[%clk 0:01:43]} 26...
bxc6 {[%clk 0:01:26.2]} 27. Rd1 {[%clk 0:01:35.8]} 27... Bc7 {[%clk 0:01:17.2]}
28. Kf2 {[%clk 0:01:33.1]} 28... Bb6 {[%clk 0:00:49.3]} 29. Kg3 {[%clk 0:01:33]}
29... Re7 {[%clk 0:00:38.3]} 30. Nd4 {[%clk 0:01:15.3]} 30... Bd7 {[%clk
0:00:33.1]} 31. Nf3 {[%clk 0:01:13.3]} 31... g5 {[%clk 0:00:24.2]} 32. Rd2
{[%clk 0:01:10.2]} 32... f5 {[%clk 0:00:22]} 33. Na4 {[%clk 0:01:01.8]} 33...
f4+ {[%clk 0:00:21.5]} 34. Kh2 {[%clk 0:00:56.1]} 34... Be3 {[%clk 0:00:21.1]}
35. Rd6 {[%clk 0:00:52.8]} 35... Kg7 {[%clk 0:00:20.6]} 36. Ne5 {[%clk
0:00:44.5]} 36... Be8 {[%clk 0:00:18.5]} 37. Ng4 {[%clk 0:00:37.9]} 37... c5
{[%clk 0:00:13.7]} 38. Nxh6 {[%clk 0:00:23.5]} 38... Bxa4 {[%clk 0:00:11.7]} 39.
Nf5+ {[%clk 0:00:24]} 39... Kf7 {[%clk 0:00:11.9]} 40. Nxe7 {[%clk 0:00:24.9]}
40... Kxe7 {[%clk 0:00:12.5]} 41. Ra6 {[%clk 0:00:25.3]} 41... Bb5 {[%clk
0:00:07.1]} 42. Rxa7+ {[%clk 0:00:24.9]} 42... Kf6 {[%clk 0:00:07.4]} 43. a4
{[%clk 0:00:22.6]} 43... Bd3 {[%clk 0:00:05.5]} 44. a5 {[%clk 0:00:20.9]} 44...
Bd4 {[%clk 0:00:05.8]} 45. Rb7 {[%clk 0:00:20.2]} 45... Ke5 {[%clk 0:00:04.9]}
46. Rb6 {[%clk 0:00:18.9]} 46... Kd5 {[%clk 0:00:05.3]} 47. a6 {[%clk
0:00:17.3]} 47... Bxa6 {[%clk 0:00:05.4]} 48. Rxa6 {[%clk 0:00:17]} 48... Bxb2
{[%clk 0:00:06.1]} 49. Kg1 {[%clk 0:00:14.5]} 49... c4 {[%clk 0:00:06.2]} 50.
Ra8 {[%clk 0:00:10.3]} 50... c3 {[%clk 0:00:06.3]} 51. Rc8 {[%clk 0:00:09.8]}
51... Kd4 {[%clk 0:00:06.7]} 52. Kf2 {[%clk 0:00:08.5]} 52... Kd3 {[%clk
0:00:07.3]} 53. Kf3 {[%clk 0:00:07.6]} 53... c2 {[%clk 0:00:04.8]} 54. g3 {[%clk
0:00:04.8]} 54... c1=Q {[%clk 0:00:03.4]} 55. Rxc1 {[%clk 0:00:04]} 55... Bxc1
{[%clk 0:00:04.3]} 56. gxf4 {[%clk 0:00:02.2]} 56... gxf4 {[%clk 0:00:03.8]} 57.
h4 {[%clk 0:00:02.8]} 57... Kd4 {[%clk 0:00:03.9]} 58. h5 {[%clk 0:00:03.5]}
58... Ke5 {[%clk 0:00:04.5]} 59. h6 {[%clk 0:00:04.2]} 59... Kf6 {[%clk
0:00:05.1]} 60. h7 {[%clk 0:00:04.9]} 60... Kg7 {[%clk 0:00:05.7]} 0-1

[Event "Late-Titled-Tuesday-Blitz-March-12-2024"]
[Site "Chess.com"]
[Date "2024.03.12"]
[Round "4"]
[White "RianKapriaga"]
[Black "PNEPaul"]
[Result "1/2-1/2"]
[WhiteElo "2294"]
[BlackElo "1957"]
[TimeControl "180+1"]
[EndTime "14:38:55 PDT"]
[Termination "Game drawn - timeout vs insufficient material"]

1. d4 {[%clk 0:03:00.7]} 1... a6 {[%clk 0:02:58.3]} 2. e4 {[%clk 0:02:59.9]}
2... d6 {[%clk 0:02:58.2]} 3. c3 {[%clk 0:02:58.9]} 3... g6 {[%clk 0:02:58.4]}
4. Nf3 {[%clk 0:02:57.5]} 4... h6 {[%clk 0:02:58.5]} 5. Bd3 {[%clk 0:02:57]}
5... Bg7 {[%clk 0:02:58.6]} 6. O-O {[%clk 0:02:56.7]} 6... Nd7 {[%clk
0:02:58.7]} 7. Qe2 {[%clk 0:02:54.7]} 7... e5 {[%clk 0:02:58.5]} 8. dxe5 {[%clk
0:02:54.1]} 8... dxe5 {[%clk 0:02:57.7]} 9. Rd1 {[%clk 0:02:52.4]} 9... Ne7
{[%clk 0:02:57.4]} 10. Nbd2 {[%clk 0:02:50.9]} 10... O-O {[%clk 0:02:56.7]} 11.
Nc4 {[%clk 0:02:49.1]} 11... Nc6 {[%clk 0:02:49.1]} 12. a4 {[%clk 0:02:47.5]}
12... Kh7 {[%clk 0:02:47]} 13. a5 {[%clk 0:02:47]} 13... f5 {[%clk 0:02:36.1]}
14. b3 {[%clk 0:02:45.3]} 14... f4 {[%clk 0:02:33.9]} 15. Ba3 {[%clk 0:02:44.5]}
15... Re8 {[%clk 0:02:32.4]} 16. Ra2 {[%clk 0:02:35.3]} 16... Qf6 {[%clk
0:02:27.4]} 17. Rad2 {[%clk 0:02:32.8]} 17... g5 {[%clk 0:02:04.7]} 18. h3
{[%clk 0:02:28.1]} 18... Qg6 {[%clk 0:01:55.3]} 19. Bc2 {[%clk 0:02:24.2]} 19...
Nf6 {[%clk 0:01:48.6]} 20. Rd5 {[%clk 0:02:14.9]} 20... Be6 {[%clk 0:01:36]} 21.
Ncxe5 {[%clk 0:02:09]} 21... Nxe5 {[%clk 0:01:27.7]} 22. Rxe5 {[%clk 0:02:09.6]}
22... Nd7 {[%clk 0:01:20.1]} 23. Rxe6 {[%clk 0:02:09]} 23... Qxe6 {[%clk
0:01:16.8]} 24. e5+ {[%clk 0:02:01]} 24... Kg8 {[%clk 0:00:56.1]} 25. Be4 {[%clk
0:01:44.6]} 25... c6 {[%clk 0:00:51.1]} 26. Bd3 {[%clk 0:01:40.5]} 26... Nxe5
{[%clk 0:00:40.4]} 27. Nxe5 {[%clk 0:01:39.8]} 27... Qxe5 {[%clk 0:00:40.2]} 28.
Qh5 {[%clk 0:01:39]} 28... Qf6 {[%clk 0:00:25.2]} 29. Bc4+ {[%clk 0:01:28.7]}
29... Kh8 {[%clk 0:00:23.4]} 30. Rd7 {[%clk 0:01:27.8]} 30... Rad8 {[%clk
0:00:17.1]} 31. Be7 {[%clk 0:00:49.1]} 31... Qxe7 {[%clk 0:00:17]} 32. Rxe7
{[%clk 0:00:48.8]} 32... Rxe7 {[%clk 0:00:17.4]} 33. g3 {[%clk 0:00:45.6]} 33...
fxg3 {[%clk 0:00:16.2]} 34. fxg3 {[%clk 0:00:36.5]} 34... Re1+ {[%clk
0:00:13.5]} 35. Kf2 {[%clk 0:00:36.5]} 35... Red1 {[%clk 0:00:12.8]} 36. Qf7
{[%clk 0:00:33.1]} 36... Rf8 {[%clk 0:00:08.7]} 37. Ke2 {[%clk 0:00:30.2]} 37...
Rxf7 {[%clk 0:00:08.2]} 38. Bxf7 {[%clk 0:00:28.4]} 38... Rc1 {[%clk 0:00:07.4]}
39. c4 {[%clk 0:00:27.7]} 39... Rc3 {[%clk 0:00:07]} 40. Be6 {[%clk 0:00:26.3]}
40... Rxb3 {[%clk 0:00:06.5]} 41. c5 {[%clk 0:00:25.7]} 41... Rxg3 {[%clk
0:00:06.2]} 42. Bc8 {[%clk 0:00:24.8]} 42... h5 {[%clk 0:00:06.3]} 43. Bxb7
{[%clk 0:00:23.8]} 43... g4 {[%clk 0:00:06.7]} 44. hxg4 {[%clk 0:00:23.4]} 44...
hxg4 {[%clk 0:00:06.9]} 45. Bxc6 {[%clk 0:00:22.8]} 45... Rc3 {[%clk 0:00:06.8]}
46. Bb7 {[%clk 0:00:22.4]} 46... Rxc5 {[%clk 0:00:06.7]} 47. Bxa6 {[%clk
0:00:23.3]} 47... Rxa5 {[%clk 0:00:06.6]} 48. Bb7 {[%clk 0:00:24.2]} 48... g3
{[%clk 0:00:06.4]} 49. Kf3 {[%clk 0:00:24.2]} 49... Ra3+ {[%clk 0:00:06.3]} 50.
Kg2 {[%clk 0:00:24.3]} 50... Be5 {[%clk 0:00:06]} 51. Be4 {[%clk 0:00:23.5]}
51... Kg8 {[%clk 0:00:06.1]} 52. Kh3 {[%clk 0:00:24.4]} 52... Kg7 {[%clk
0:00:06.3]} 53. Kg2 {[%clk 0:00:24.7]} 53... Kf6 {[%clk 0:00:06.5]} 54. Kh3
{[%clk 0:00:25.1]} 54... Kg5 {[%clk 0:00:06.8]} 55. Kg2 {[%clk 0:00:26]} 55...
Kf4 {[%clk 0:00:07]} 56. Bc6 {[%clk 0:00:26]} 56... Ra2+ {[%clk 0:00:06.9]} 57.
Kh1 {[%clk 0:00:26]} 57... Rh2+ {[%clk 0:00:06.1]} 58. Kg1 {[%clk 0:00:26.2]}
58... Bd4+ {[%clk 0:00:06.1]} 59. Kf1 {[%clk 0:00:26.6]} 59... g2+ {[%clk
0:00:06.4]} 60. Bxg2 {[%clk 0:00:25.9]} 60... Be3 {[%clk 0:00:03.2]} 61. Bc6
{[%clk 0:00:24.7]} 61... Rf2+ {[%clk 0:00:02.8]} 62. Ke1 {[%clk 0:00:24.6]}
62... Rc2 {[%clk 0:00:02.7]} 63. Ba4 {[%clk 0:00:23.7]} 63... Rc1+ {[%clk
0:00:02.6]} 64. Ke2 {[%clk 0:00:23.7]} 64... Ra1 {[%clk 0:00:02.6]} 65. Bc6
{[%clk 0:00:23.5]} 65... Ra2+ {[%clk 0:00:02.6]} 66. Kf1 {[%clk 0:00:23.1]}
66... Kg3 {[%clk 0:00:01.6]} 67. Ke1 {[%clk 0:00:22.9]} 1/2-1/2

[Event "Late-Titled-Tuesday-Blitz-March-12-2024"]
[Site "Chess.com"]
[Date "2024.03.12"]
[Round "4"]
[White "SlavenPastar"]
[Black "Roedor"]
[Result "1-0"]
[WhiteElo "2583"]
[BlackElo "2282"]
[TimeControl "180+1"]
[EndTime "14:38:57 PDT"]
[Termination "SlavenPastar won by checkmate"]

1. b3 {[%clk 0:03:00.9]} 1... e5 {[%clk 0:02:55.6]} 2. Bb2 {[%clk 0:03:00.9]}
2... Nc6 {[%clk 0:02:55.4]} 3. Nf3 {[%clk 0:03:01.3]} 3... e4 {[%clk 0:02:54.1]}
4. Nd4 {[%clk 0:03:01.8]} 4... Nf6 {[%clk 0:02:41.2]} 5. e3 {[%clk 0:03:01.3]}
5... h5 {[%clk 0:02:38.2]} 6. d3 {[%clk 0:02:49.1]} 6... exd3 {[%clk 0:02:31.3]}
7. Bxd3 {[%clk 0:02:40.4]} 7... h4 {[%clk 0:02:30.8]} 8. h3 {[%clk 0:02:26.8]}
8... d5 {[%clk 0:02:13.8]} 9. Nxc6 {[%clk 0:02:19.8]} 9... bxc6 {[%clk
0:02:14.7]} 10. Nd2 {[%clk 0:02:17.6]} 10... Bd6 {[%clk 0:02:05]} 11. Qf3 {[%clk
0:02:10.6]} 11... Qe7 {[%clk 0:02:01]} 12. e4 {[%clk 0:01:55.8]} 12... Be5
{[%clk 0:01:27]} 13. Bxe5 {[%clk 0:01:53]} 13... Qxe5 {[%clk 0:01:27.9]} 14. O-O
{[%clk 0:01:48.7]} 14... O-O {[%clk 0:01:23.3]} 15. Rfe1 {[%clk 0:01:42.3]}
15... Qg5 {[%clk 0:01:14.2]} 16. Rad1 {[%clk 0:01:33.6]} 16... Be6 {[%clk
0:01:13.7]} 17. e5 {[%clk 0:01:11]} 17... Nh5 {[%clk 0:01:03.8]} 18. Bf1 {[%clk
0:00:56.6]} 18... a5 {[%clk 0:01:03.3]} 19. a4 {[%clk 0:00:44.6]} 19... Rab8
{[%clk 0:01:02.7]} 20. Kh2 {[%clk 0:00:41.4]} 20... Rb4 {[%clk 0:01:01.9]} 21.
Qe3 {[%clk 0:00:41.3]} 21... Qg6 {[%clk 0:00:40.2]} 22. Bd3 {[%clk 0:00:36.4]}
22... Bf5 {[%clk 0:00:37.8]} 23. Nf3 {[%clk 0:00:30.6]} 23... Re8 {[%clk
0:00:22.5]} 24. Bxf5 {[%clk 0:00:28]} 24... Qxf5 {[%clk 0:00:22.3]} 25. Nd4
{[%clk 0:00:12.5]} 25... Qg6 {[%clk 0:00:17]} 26. Nxc6 {[%clk 0:00:07.2]} 26...
Qxc6 {[%clk 0:00:16.5]} 27. Qg5 {[%clk 0:00:04]} 27... Qg6 {[%clk 0:00:14.4]}
28. Qe3 {[%clk 0:00:03.3]} 28... Nf4 {[%clk 0:00:14]} 29. Rg1 {[%clk 0:00:03.4]}
29... Ne6 {[%clk 0:00:13.6]} 30. Rxd5 {[%clk 0:00:03.2]} 30... Rd8 {[%clk
0:00:11.6]} 31. Rgd1 {[%clk 0:00:02.3]} 31... Rxd5 {[%clk 0:00:11.4]} 32. Rxd5
{[%clk 0:00:03.2]} 32... Nf4 {[%clk 0:00:11.3]} 33. Rd8+ {[%clk 0:00:03.1]}
33... Kh7 {[%clk 0:00:11.6]} 34. Qf3 {[%clk 0:00:03.6]} 34... Qg5 {[%clk
0:00:10.4]} 35. Qa8 {[%clk 0:00:03.1]} 35... Re4 {[%clk 0:00:08.3]} 36. Rh8+
{[%clk 0:00:02.8]} 36... Kg6 {[%clk 0:00:08.6]} 37. Qc6+ {[%clk 0:00:02.6]}
37... f6 {[%clk 0:00:08.3]} 38. Qxe4+ {[%clk 0:00:02.6]} 38... f5 {[%clk
0:00:07.9]} 39. Qf3 {[%clk 0:00:02.6]} 39... Ne6 {[%clk 0:00:05.8]} 40. Re8
{[%clk 0:00:02.2]} 40... Kf7 {[%clk 0:00:05.1]} 41. Rxe6 {[%clk 0:00:02.1]}
41... Kxe6 {[%clk 0:00:05.2]} 42. Qc6+ {[%clk 0:00:02.6]} 42... Kxe5 {[%clk
0:00:05.1]} 43. Qxc7+ {[%clk 0:00:03.5]} 43... Ke6 {[%clk 0:00:05.2]} 44. Qc4+
{[%clk 0:00:04]} 44... Kf6 {[%clk 0:00:05.3]} 45. Qc6+ {[%clk 0:00:04.2]} 45...
Kf7 {[%clk 0:00:05.5]} 46. Qd7+ {[%clk 0:00:04.4]} 46... Kg6 {[%clk 0:00:05.7]}
47. Qe8+ {[%clk 0:00:05]} 47... Kh6 {[%clk 0:00:05.6]} 48. Qe3 {[%clk 0:00:05]}
48... f4 {[%clk 0:00:05.5]} 49. Qf3 {[%clk 0:00:05.2]} 49... Qf5 {[%clk
0:00:05.2]} 50. Qg4 {[%clk 0:00:05.2]} 50... Qe5 {[%clk 0:00:04.7]} 51. Qxh4+
{[%clk 0:00:05.5]} 51... Kg6 {[%clk 0:00:05.4]} 52. Qg4+ {[%clk 0:00:06.2]}
52... Kf6 {[%clk 0:00:05.7]} 53. Qf3 {[%clk 0:00:06.7]} 53... g5 {[%clk
0:00:05.9]} 54. g3 {[%clk 0:00:06.7]} 54... Qc7 {[%clk 0:00:04.8]} 55. h4 {[%clk
0:00:06.2]} 55... Kg6 {[%clk 0:00:03.9]} 56. hxg5 {[%clk 0:00:06.4]} 56... Qh7+
{[%clk 0:00:04.1]} 57. Kg2 {[%clk 0:00:06.3]} 57... fxg3 {[%clk 0:00:05]} 58.
Qxg3 {[%clk 0:00:06.3]} 58... Qb7+ {[%clk 0:00:04.9]} 59. Qf3 {[%clk 0:00:06.3]}
59... Qb4 {[%clk 0:00:04.3]} 60. Qf6+ {[%clk 0:00:04.8]} 60... Kh5 {[%clk
0:00:03.9]} 61. Qh6+ {[%clk 0:00:04.2]} 61... Kg4 {[%clk 0:00:04.4]} 62. f3+
{[%clk 0:00:04]} 62... Kf5 {[%clk 0:00:04.9]} 63. Qf6# {[%clk 0:00:04]} 1-0

[Event "Late-Titled-Tuesday-Blitz-March-12-2024"]
[Site "Chess.com"]
[Date "2024.03.12"]
[Round "4"]
[White "IMRosen"]
[Black "tandaleo"]
[Result "1/2-1/2"]
[WhiteElo "2690"]
[BlackElo "2484"]
[TimeControl "180+1"]
[EndTime "14:39:01 PDT"]
[Termination "Game drawn by repetition"]

1. e4 {[%clk 0:03:00.9]} 1... e5 {[%clk 0:02:56.6]} 2. Nf3 {[%clk 0:03:00.9]}
2... Nc6 {[%clk 0:02:56.9]} 3. c3 {[%clk 0:03:01.5]} 3... Nf6 {[%clk 0:02:51.6]}
4. d4 {[%clk 0:03:01.5]} 4... exd4 {[%clk 0:02:52]} 5. e5 {[%clk 0:03:01.7]}
5... Nd5 {[%clk 0:02:52.8]} 6. Qb3 {[%clk 0:03:02.2]} 6... Nb6 {[%clk
0:02:51.7]} 7. cxd4 {[%clk 0:03:02.8]} 7... d6 {[%clk 0:02:50.7]} 8. Bb5 {[%clk
0:03:03.4]} 8... dxe5 {[%clk 0:02:49.8]} 9. Nxe5 {[%clk 0:02:57.7]} 9... Qf6
{[%clk 0:02:20.2]} 10. O-O {[%clk 0:02:17.6]} 10... Be6 {[%clk 0:02:12.4]} 11.
Qg3 {[%clk 0:02:02.5]} 11... Bd5 {[%clk 0:01:41.8]} 12. Nc3 {[%clk 0:01:52.8]}
12... Be7 {[%clk 0:01:32.5]} 13. Nxd5 {[%clk 0:01:20.2]} 13... Nxd5 {[%clk
0:01:32.7]} 14. Nxc6 {[%clk 0:01:20.9]} 14... bxc6 {[%clk 0:01:30.7]} 15. Bg5
{[%clk 0:01:21.1]} 15... Qg6 {[%clk 0:01:22.1]} 16. Bxe7 {[%clk 0:01:05.9]}
16... Qxg3 {[%clk 0:01:18.7]} 17. Bxc6+ {[%clk 0:01:04]} 17... Kxe7 {[%clk
0:01:10.4]} 18. hxg3 {[%clk 0:01:01.5]} 18... Rad8 {[%clk 0:01:10.5]} 19. Rac1
{[%clk 0:00:48.7]} 19... Nb4 {[%clk 0:00:51]} 20. Rfe1+ {[%clk 0:00:48.6]} 20...
Kf6 {[%clk 0:00:48.6]} 21. Bb5 {[%clk 0:00:43.5]} 21... c6 {[%clk 0:00:38.4]}
22. a3 {[%clk 0:00:36.1]} 22... cxb5 {[%clk 0:00:38.3]} 23. axb4 {[%clk
0:00:36.1]} 23... Rxd4 {[%clk 0:00:37.7]} 24. Rc6+ {[%clk 0:00:36.3]} 24... Kg5
{[%clk 0:00:34.7]} 25. Rc5+ {[%clk 0:00:15]} 25... Kg6 {[%clk 0:00:30.4]} 26.
Rxb5 {[%clk 0:00:14.2]} 26... Rc8 {[%clk 0:00:28]} 27. Re2 {[%clk 0:00:10.4]}
27... Rd1+ {[%clk 0:00:24.4]} 28. Kh2 {[%clk 0:00:10.9]} 28... Rcc1 {[%clk
0:00:25.1]} 29. g4 {[%clk 0:00:11.5]} 29... Re1 {[%clk 0:00:15.2]} 30. Rd2
{[%clk 0:00:06.9]} 30... Red1 {[%clk 0:00:15.5]} 31. Re2 {[%clk 0:00:06.1]}
31... Re1 {[%clk 0:00:15.9]} 32. Rxe1 {[%clk 0:00:03.2]} 32... Rxe1 {[%clk
0:00:16.8]} 33. f3 {[%clk 0:00:04]} 33... Rb1 {[%clk 0:00:15.1]} 34. Ra5 {[%clk
0:00:02.3]} 34... Rxb2 {[%clk 0:00:15.4]} 35. Ra6+ {[%clk 0:00:02.5]} 35... f6
{[%clk 0:00:14.3]} 36. Ra4 {[%clk 0:00:02.9]} 36... h6 {[%clk 0:00:08.5]} 37.
Kg3 {[%clk 0:00:03]} 37... Kh7 {[%clk 0:00:08.9]} 38. Kh3 {[%clk 0:00:03.3]}
38... Kg6 {[%clk 0:00:09.2]} 39. Kg3 {[%clk 0:00:02.4]} 39... Kh7 {[%clk
0:00:09.6]} 40. Rxa7 {[%clk 0:00:01.9]} 40... Rxb4 {[%clk 0:00:09.6]} 41. Ra6
{[%clk 0:00:01.7]} 41... Kg6 {[%clk 0:00:09.7]} 42. Ra8 {[%clk 0:00:01.9]} 42...
Rb3 {[%clk 0:00:08.6]} 43. Ra2 {[%clk 0:00:02.4]} 43... Rb4 {[%clk 0:00:08.9]}
44. Rc2 {[%clk 0:00:02.7]} 44... Rb3 {[%clk 0:00:09.3]} 45. Rc4 {[%clk
0:00:03.1]} 45... Rb2 {[%clk 0:00:09.6]} 46. Rd4 {[%clk 0:00:03.2]} 46... Ra2
{[%clk 0:00:10]} 47. Kh3 {[%clk 0:00:03.5]} 47... Rb2 {[%clk 0:00:10.4]} 48. Rd3
{[%clk 0:00:04.1]} 48... Ra2 {[%clk 0:00:10.7]} 49. Rd8 {[%clk 0:00:04.4]} 49...
Rb2 {[%clk 0:00:11.2]} 50. g3 {[%clk 0:00:04.8]} 50... Rf2 {[%clk 0:00:10.8]}
51. f4 {[%clk 0:00:04.8]} 51... Ra2 {[%clk 0:00:09.3]} 52. Rd3 {[%clk
0:00:04.9]} 52... Rb2 {[%clk 0:00:09.6]} 53. Rc3 {[%clk 0:00:05.4]} 53... Ra2
{[%clk 0:00:10]} 54. Rb3 {[%clk 0:00:06.1]} 54... Rc2 {[%clk 0:00:09.9]} 55. Rb7
{[%clk 0:00:06.8]} 55... Ra2 {[%clk 0:00:09.8]} 56. Rb5 {[%clk 0:00:04.6]} 56...
Rc2 {[%clk 0:00:09.7]} 57. Rb8 {[%clk 0:00:04.8]} 57... Ra2 {[%clk 0:00:09.4]}
58. Rh8 {[%clk 0:00:05]} 58... Rc2 {[%clk 0:00:04.9]} 59. f5+ {[%clk 0:00:04.1]}
59... Kf7 {[%clk 0:00:04.4]} 60. Ra8 {[%clk 0:00:03.9]} 60... Rb2 {[%clk
0:00:04.4]} 61. Ra7+ {[%clk 0:00:04.3]} 61... Kg8 {[%clk 0:00:04.4]} 62. Ra8+
{[%clk 0:00:04.3]} 62... Kf7 {[%clk 0:00:04.8]} 63. Ra6 {[%clk 0:00:02.7]} 63...
Rc2 {[%clk 0:00:04.3]} 64. Ra1 {[%clk 0:00:03.3]} 64... Rb2 {[%clk 0:00:04.6]}
65. Rd1 {[%clk 0:00:03.8]} 65... Ra2 {[%clk 0:00:05]} 66. Rd7+ {[%clk
0:00:04.3]} 66... Kg8 {[%clk 0:00:05.3]} 67. Rc7 {[%clk 0:00:04.3]} 67... Rb2
{[%clk 0:00:05.4]} 68. Ra7 {[%clk 0:00:04.4]} 68... Kf8 {[%clk 0:00:04.9]} 69.
Rd7 {[%clk 0:00:04.9]} 69... Ra2 {[%clk 0:00:05]} 70. Rb7 {[%clk 0:00:05]} 70...
Rc2 {[%clk 0:00:05.2]} 71. Ra7 {[%clk 0:00:04.7]} 71... Rb2 {[%clk 0:00:05.6]}
72. Ra8+ {[%clk 0:00:05]} 72... Kf7 {[%clk 0:00:05.9]} 1/2-1/2